fUSD/lending_fUSD_20250113
["ID","MTS","AMOUNT","RATE_DAILY","PERIOD"]
[348838240,1736800242691,-500.0,9.991e-05,2]
[348838241,1736800242700,-500.0,9.991e-05,2]
[348838242,1736800242709,-500.0,9.991e-05,2]
[348838243,1736800242718,-500.0,9.991e-05,2]
[348838244,1736800242729,-500.0,9.991e-05,2]
[348838245,1736800242738,-500.0,9.991e-05,2]
[348838246,1736800242747,-500.0,9.991e-05,2]
[348838247,1736800242756,-500.0,9.991e-05,2]
[348838248,1736800242766,-503.2,9.991e-05,2]
[348838249,1736800242775,-500.0,9.991e-05,2]
[348838250,1736800242784,-500.0,9.991e-05,2]
[348838251,1736800242793,-520.89227985,9.991e-05,2]
[348838252,1736800242802,-526.81258031,9.991e-05,2]
[348838253,1736800242810,-500.0,9.991e-05,2]
[348838254,1736800242820,-500.0,9.991e-05,2]
[348838255,1736800242829,-500.0,9.991e-05,2]
[348838256,1736800242838,-500.0,9.991e-05,2]
[348838257,1736800242848,-561.64709838,9.991e-05,2]
[348838258,1736800242857,-793.47,9.991e-05,2]
[348838259,1736800242866,-500.0,9.991e-05,2]
[348838260,1736800242875,-500.0,9.991e-05,2]
[348838261,1736800242885,-500.0,9.991e-05,2]
[348838262,1736800242894,-500.0,9.991e-05,2]
[348838263,1736800242903,-500.0,9.991e-05,2]
[348838264,1736800242913,-420.0,9.991e-05,2]
[348838265,1736800242922,-500.0,9.991e-05,2]
[348838266,1736800242931,-500.0,9.991e-05,2]
[348838267,1736800242941,-500.0,9.991e-05,2]
[348838268,1736800242950,-500.0,9.991e-05,2]
[348838269,1736800242960,-500.0,9.991e-05,2]
[348838270,1736800242969,-3058.62755763,9.991e-05,2]
[348838272,1736800242979,-3144.57971895,9.991e-05,2]
[348838274,1736800242988,-5615.04980731,9.991e-05,2]
[348838275,1736800242997,-2508.74472722,9.992e-05,2]
[348838276,1736800243007,-5615.04980731,9.992e-05,2]
[348838277,1736800243016,-55008.61969303,9.992e-05,2]
[348838278,1736800243025,-500.0,9.992e-05,2]
[348838279,1736800243034,-544.87,9.992e-05,2]
[348838280,1736800243043,-500.0,9.992e-05,2]
[348838281,1736800243052,-500.0,9.992e-05,2]
[348838284,1736800243061,-500.0,9.992e-05,2]
[348838286,1736800243070,-500.0,9.992e-05,2]
[348838288,1736800243080,-500.0,9.992e-05,2]
[348838290,1736800243089,-500.0,9.992e-05,2]
[348838292,1736800243098,-500.0,9.992e-05,2]
[348838293,1736800243107,-500.0,9.992e-05,2]
[348838295,1736800243116,-502.65,9.992e-05,2]
[348838296,1736800243126,-500.0,9.992e-05,2]
[348838297,1736800243135,-501.59316364,9.992e-05,2]
[348838298,1736800243145,-500.0,9.992e-05,2]
[348838299,1736800243155,-85059.95857805,9.992e-05,2]
[348838300,1736800243164,-26286.39949321,9.992e-05,2]
[348838301,1736800243173,-567.24522685,9.993e-05,2]
[348838302,1736800243183,-1308.59006201,9.993e-05,2]
[348838303,1736800243192,-18301.49607968,9.993e-05,2]
[348838304,1736800243203,-473.05454046,9.993e-05,2]
[348838305,1736800243212,-315.24674692,9.993e-05,2]
[348838306,1736800243222,-543.85969001,9.993e-05,2]
[348838307,1736800243232,-1307.98,9.993e-05,2]
[348838308,1736800243243,-3748.27,9.993e-05,2]
[348838309,1736800243252,-500.0,9.993e-05,2]
[348838310,1736800243262,-500.0,9.993e-05,2]
[348838311,1736800243271,-500.0,9.993e-05,2]
[348838312,1736800243282,-500.0,9.993e-05,2]
[348838313,1736800243292,-444.28162251,9.993e-05,2]
[348838314,1736800243302,-500.0,9.993e-05,2]
[348838315,1736800243311,-500.0,9.993e-05,2]
[348838316,1736800243321,-500.0,9.993e-05,2]
[348838317,1736800243330,-500.0,9.993e-05,2]
[348838318,1736800243340,-500.0,9.993e-05,2]
[348838319,1736800243349,-359.30218465,9.993e-05,2]
[348838320,1736800243359,-500.0,9.993e-05,2]
[348838321,1736800243368,-500.0,9.993e-05,2]
[348838322,1736800243377,-500.0,9.993e-05,2]
[348838323,1736800243387,-500.0,9.993e-05,2]
[348838324,1736800243397,-500.0,9.993e-05,2]
[348838325,1736800243406,-500.0,9.993e-05,2]
[348838326,1736800243416,-500.0,9.993e-05,2]
[348838327,1736800243425,-500.0,9.993e-05,2]
[348838328,1736800243435,-500.0,9.993e-05,2]
[348838329,1736800243445,-500.0,9.993e-05,2]
[348838330,1736800243455,-500.0,9.993e-05,2]
[348838331,1736800243464,-500.0,9.993e-05,2]
[348838332,1736800243473,-500.0,9.993e-05,2]
[348838333,1736800243483,-500.0,9.993e-05,2]
[348838334,1736800243492,-500.0,9.993e-05,2]
[348838335,1736800243502,-1088.61,9.993e-05,2]
[348838336,1736800243513,-500.0,9.993e-05,2]
[348838338,1736800243523,-778.07,9.993e-05,2]
[348838339,1736800243533,-500.0,9.993e-05,2]
[348838340,1736800243543,-500.0,9.993e-05,2]
[348838341,1736800243552,-500.0,9.993e-05,2]
[348838342,1736800243562,-500.0,9.993e-05,2]
[348838343,1736800243571,-500.0,9.993e-05,2]
[348838344,1736800243582,-500.0,9.993e-05,2]
[348838345,1736800243592,-500.0,9.993e-05,2]
[348838346,1736800243602,-500.0,9.993e-05,2]
[348838347,1736800243612,-500.0,9.993e-05,2]
[348838348,1736800243623,-500.0,9.993e-05,2]
[348838349,1736800243632,-500.0,9.993e-05,2]
[348838350,1736800243641,-500.0,9.993e-05,2]
[348838351,1736800243651,-500.0,9.993e-05,2]
[348838353,1736800243661,-500.0,9.993e-05,2]
[348838354,1736800243670,-507.71515599,9.993e-05,2]
[348838356,1736800243685,-502.92272852,9.993e-05,2]
[348838357,1736800243696,-500.0,9.993e-05,2]
[348838358,1736800243706,-500.0,9.993e-05,2]
[348838359,1736800243715,-1281.07,9.993e-05,2]
[348838360,1736800243726,-500.0,9.993e-05,2]
[348838361,1736800243735,-500.0,9.993e-05,2]
[348838362,1736800243745,-500.0,9.993e-05,2]
[348838363,1736800243755,-500.0,9.993e-05,2]
[348838364,1736800243765,-500.0,9.993e-05,2]
[348838365,1736800243774,-500.0,9.993e-05,2]
[348838366,1736800243784,-500.0,9.993e-05,2]
[348838367,1736800243793,-500.0,9.993e-05,2]
[348838369,1736800243802,-500.0,9.993e-05,2]
[348838371,1736800243812,-1247.28,9.993e-05,2]
[348838372,1736800243821,-557.63153307,9.993e-05,2]
[348838373,1736800243831,-1313.58,9.993e-05,2]
[348838374,1736800243841,-500.0,9.993e-05,2]
[348838375,1736800243851,-500.0,9.993e-05,2]
[348838376,1736800243860,-500.0,9.993e-05,2]
[348838377,1736800243870,-618.35,9.993e-05,2]
[348838378,1736800243880,-500.0,9.993e-05,2]
[348838379,1736800243890,-500.0,9.993e-05,2]
[348838380,1736800243899,-625.96,9.993e-05,2]
[348838381,1736800243909,-1380.3,9.993e-05,2]
[348838382,1736800243918,-500.0,9.993e-05,2]
[348838383,1736800243928,-500.0,9.993e-05,2]
[348838384,1736800243938,-500.0,9.993e-05,2]
[348838385,1736800243947,-500.0,9.993e-05,2]
[348838386,1736800243958,-589.65,9.993e-05,2]
[348838387,1736800243967,-500.0,9.993e-05,2]
[348838388,1736800243978,-500.0,9.993e-05,2]
[348838389,1736800243988,-500.0,9.993e-05,2]
[348838390,1736800243997,-500.0,9.993e-05,2]
[348838391,1736800244006,-500.0,9.993e-05,2]
[348838392,1736800244017,-3051.04,9.993e-05,2]
[348838393,1736800244027,-500.0,9.993e-05,2]
[348838394,1736800244036,-500.0,9.993e-05,2]
[348838396,1736800244046,-500.0,9.993e-05,2]
[348838397,1736800244055,-1398.02,9.993e-05,2]
[348838398,1736800244065,-1930.37,9.993e-05,2]
[348838399,1736800244075,-993.54,9.993e-05,2]
[348838400,1736800244084,-1102.22,9.993e-05,2]
[348838401,1736800244094,-500.0,9.993e-05,2]
[348838402,1736800244103,-622.23,9.993e-05,2]
[348838403,1736800244113,-151.0,9.993e-05,2]
[348838404,1736800244123,-1264.85,9.993e-05,2]
[348838405,1736800244132,-500.0,9.993e-05,2]
[348838406,1736800244141,-763.83,9.993e-05,2]
[348838407,1736800244151,-509.73,9.993e-05,2]
[348838408,1736800244161,-500.0,9.993e-05,2]
[348838409,1736800244171,-472.02093192,9.993e-05,2]
[348838410,1736800244181,-473.05454046,9.993e-05,2]
[348838411,1736800244191,-55008.61969303,9.993e-05,2]
[348838412,1736800244200,-3224.59960853,9.994e-05,2]
[348838413,1736800244210,-1465.58912121,9.994e-05,2]
[348838414,1736800244220,-4555.51025348,9.994e-05,2]
[348838415,1736800244230,-3197.26119021,9.994e-05,2]
[348838416,1736800244240,-4003.33162118,9.994e-05,2]
[348838417,1736800244250,-65382.58947501,9.994e-05,2]
[348838418,1736800244261,-935.84100975,9.994e-05,2]
[348838419,1736800244271,-473.05454046,9.994e-05,2]
[348838420,1736800244281,-26286.39949321,9.995e-05,2]
[348838421,1736800244291,-1308.59006201,9.995e-05,2]
[348838422,1736800244300,-105100.23288208,9.995e-05,2]
[348838423,1736800244310,-200.0,9.995e-05,2]
[348838424,1736800244319,-2508.74472722,9.995e-05,2]
[348838425,1736800244328,-473.05454046,9.995e-05,2]
[348838426,1736800244338,-209.65043439,9.995e-05,2]
[348838427,1736800244348,-3197.26119021,9.995e-05,2]
[348838428,1736800244357,-223.05875102,9.995e-05,2]
[348838429,1736800244367,-3144.57971895,9.996e-05,2]
[348838430,1736800244376,-209.65043439,9.996e-05,2]
[348838431,1736800244385,-41843.3523983,9.996e-05,2]
[348838432,1736800244395,-1308.59006201,9.996e-05,2]
[348838433,1736800244404,-1465.58912121,9.996e-05,2]
[348838434,1736800244415,-500.0,9.996e-05,2]
[348838435,1736800244424,-500.0,9.996e-05,2]
[348838436,1736800244434,-500.0,9.996e-05,2]
[348838437,1736800244443,-500.0,9.996e-05,2]
[348838438,1736800244453,-500.0,9.996e-05,2]
[348838439,1736800244462,-500.0,9.996e-05,2]
[348838440,1736800244472,-500.0,9.996e-05,2]
[348838441,1736800244482,-500.0,9.996e-05,2]
[348838442,1736800244492,-508.58,9.996e-05,2]
[348838443,1736800244502,-500.0,9.996e-05,2]
[348838444,1736800244513,-500.0,9.996e-05,2]
[348838445,1736800244523,-500.0,9.996e-05,2]
[348838446,1736800244533,-500.0,9.996e-05,2]
[348838447,1736800244544,-500.0,9.996e-05,2]
[348838448,1736800244553,-500.0,9.996e-05,2]
[348838449,1736800244562,-500.0,9.996e-05,2]
[348838450,1736800244572,-500.0,9.996e-05,2]
[348838451,1736800244582,-500.0,9.996e-05,2]
[348838452,1736800244591,-204.77,9.996e-05,2]
[348838453,1736800244601,-500.0,9.996e-05,2]
[348838454,1736800244611,-500.0,9.996e-05,2]
[348838455,1736800244620,-500.0,9.996e-05,2]
[348838456,1736800244630,-574.65,9.996e-05,2]
[348838457,1736800244639,-500.0,9.996e-05,2]
[348838458,1736800244648,-500.0,9.996e-05,2]
[348838459,1736800244658,-500.0,9.996e-05,2]
[348838460,1736800244667,-500.0,9.996e-05,2]
[348838461,1736800244679,-500.0,9.996e-05,2]
[348838462,1736800244690,-500.0,9.996e-05,2]
[348838463,1736800244700,-500.0,9.996e-05,2]
[348838464,1736800244709,-500.0,9.996e-05,2]
[348838465,1736800244719,-500.0,9.996e-05,2]
[348838466,1736800244729,-500.0,9.996e-05,2]
[348838467,1736800244739,-500.0,9.996e-05,2]
[348838468,1736800244749,-500.0,9.996e-05,2]
[348838469,1736800244759,-500.0,9.996e-05,2]
[348838470,1736800244772,-500.0,9.996e-05,2]
[348838471,1736800244782,-500.0,9.996e-05,2]
[348838472,1736800244791,-500.0,9.996e-05,2]
[348838473,1736800244801,-500.0,9.996e-05,2]
[348838474,1736800244810,-500.0,9.996e-05,2]
[348838475,1736800244820,-500.0,9.996e-05,2]
[348838476,1736800244829,-500.0,9.996e-05,2]
[348838477,1736800244839,-500.0,9.996e-05,2]
[348838478,1736800244848,-500.0,9.996e-05,2]
[348838479,1736800244857,-500.0,9.996e-05,2]
[348838480,1736800244867,-500.0,9.996e-05,2]
[348838481,1736800244876,-4555.51025348,9.996e-05,2]
[348838482,1736800244885,-4555.51025348,9.996e-05,2]
[348838483,1736800244894,-1450.10288276,9.996e-05,2]
[348838484,1736800244904,-3197.26119021,9.997e-05,2]
[348838485,1736800244914,-2508.74472722,9.997e-05,2]
[348838486,1736800244923,-55008.61969303,9.997e-05,2]
[348838487,1736800244932,-2029.01240962,9.997e-05,2]
[348838488,1736800244943,-684.81,9.997e-05,2]
[348838489,1736800244952,-544.43,9.997e-05,2]
[348838490,1736800244962,-1465.24,9.997e-05,2]
[348838491,1736800244972,-500.0,9.997e-05,2]
[348838492,1736800244981,-1245.17,9.997e-05,2]
[348838493,1736800244991,-1840.04,9.997e-05,2]
[348838494,1736800245001,-1127.54,9.997e-05,2]
[348838495,1736800245010,-1594.58,9.997e-05,2]
[348838496,1736800245022,-3328.53,9.997e-05,2]
[348838497,1736800245031,-8809.62,9.997e-05,2]
[348838498,1736800245041,-8809.62,9.997e-05,2]
[348838499,1736800245052,-1148.15,9.997e-05,2]
[348838500,1736800245062,-743.96,9.997e-05,2]
[348838501,1736800245073,-1917.73,9.997e-05,2]
[348838502,1736800245082,-500.0,9.997e-05,2]
[348838503,1736800245091,-601.84,9.997e-05,2]
[348838504,1736800245100,-1194.92,9.997e-05,2]
[348838505,1736800245110,-151.0,9.997e-05,2]
[348838506,1736800245119,-1548.54,9.997e-05,2]
[348838507,1736800245129,-500.0,9.997e-05,2]
[348838508,1736800245138,-500.0,9.997e-05,2]
[348838509,1736800245147,-1000.0,9.997e-05,2]
[348838510,1736800245157,-978.41,9.997e-05,2]
[348838511,1736800245166,-500.0,9.997e-05,2]
[348838512,1736800245175,-500.0,9.997e-05,2]
[348838513,1736800245185,-2285.79,9.997e-05,2]
[348838514,1736800245194,-500.0,9.997e-05,2]
[348838515,1736800245204,-1365.68,9.997e-05,2]
[348838516,1736800245214,-1308.59006201,9.997e-05,2]
[348838517,1736800245223,-3197.26119021,9.997e-05,2]
[348838518,1736800245233,-18301.49607968,9.997e-05,2]
[348838519,1736800245242,-223.05875102,9.997e-05,2]
[348838520,1736800245251,-4003.33162118,9.998e-05,2]
[348838521,1736800245260,-2131.28418051,9.998e-05,2]
[348838522,1736800245271,-200.0,9.998e-05,2]
[348838523,1736800245280,-1465.58912121,9.998e-05,2]
[348838524,1736800245290,-3224.59960853,9.998e-05,2]
[348838525,1736800245299,-11230.09961462,9.998e-05,2]
[348838526,1736800245308,-882.85765592,9.998e-05,2]
[348838527,1736800245317,-2878.30321559,9.999e-05,2]
[348838528,1736800245327,-2118.55490688,9.999e-05,2]
[348838529,1736800245336,-18983.56714127,9.999e-05,2]
[348838530,1736800245345,-5615.04980731,9.999e-05,2]
[348838531,1736800245355,-200.0,9.999e-05,2]
[348838532,1736800245364,-223.05875102,9.999e-05,2]
[348838533,1736800245373,-85059.95857805,9.999e-05,2]
[348838534,1736800245382,-65382.58947501,9.999e-05,2]
[348838535,1736800245392,-18983.56714127,9.999e-05,2]
[348838536,1736800245401,-3224.59960853,9.999e-05,2]
[348838537,1736800245410,-3197.26119021,9.999e-05,2]
[348838538,1736800245419,-200.0,9.999e-05,2]
[348838539,1736800245429,-2878.30321559,0.0001,2]
[348838540,1736800245439,-105100.23288208,0.0001,2]
[348838541,1736800245450,-200.0,0.0001,2]
[348838542,1736800245459,-3144.57971895,0.0001,2]
[348838543,1736800245468,-2508.74472722,0.0001,2]
[348838544,1736800245477,-852927.59111294,0.0001,2]
[348838545,1736800245934,-68357.03431997,0.0001,2]
[348838546,1736800245966,-167213.23235932,0.0001,2]
[348838547,1736800245977,-5680.29847286,0.0001,2]
[348838548,1736800245988,-18466.6,0.0001,2]
[348838551,1736800246021,-13260.0,0.0001,2]
[348838552,1736800246032,-461244.04533547,0.0001,2]
[348838553,1736800246044,-557.91029838,0.0001,2]
[348838554,1736800246055,-2041.8,0.0001,2]
[348838555,1736800246318,-16201.36291002,0.0001,2]
[348838556,1736800246336,-823.431,0.0001,2]
[348838557,1736800246347,-509.59999992,0.0001,2]
[348838558,1736800246359,-466.9021828,0.0001,2]
[348838559,1736800246371,-495.6,0.0001,2]
[348838560,1736800246394,-73970.74,0.0001,2]
[348838568,1736800246991,-500.0,9.97e-05,2]
[348838569,1736800247000,-500.0,9.97e-05,2]
[348838570,1736800247009,-500.0,9.97e-05,2]
[348838571,1736800247025,-492.98887248,9.988e-05,2]
[348838572,1736800247035,-500.0,9.988e-05,2]
[348838573,1736800247045,-149797.15449924,0.0001,2]
[348838574,1736800247059,-14446.45335528,0.0001,2]
[348838575,1736800247070,-5642.4997,0.0001,2]
[348838576,1736800247118,-500.0,9.97e-05,2]
[348838577,1736800247127,-186099.17647787,0.0001,2]
[348838578,1736800247138,-2248.54128156,0.0001,2]
[348838579,1736800247218,-500.0,0.0001,2]
[348838580,1736800247229,-3576.9,0.0001,2]
[348838581,1736800247251,-933.70796023,0.0001,2]
[348838582,1736800247648,-500.0,9.97e-05,2]
[348838583,1736800247657,-192.98551302,9.97e-05,2]
[348838584,1736800503227,11914.0,0.00023,120]
[348838585,1736800519796,964.2,8.219e-05,2]
[348838587,1736800803764,3570.0,0.00023,120]
[348838588,1736800992631,500.0,0.00022999,120]
[348838589,1736800994842,2000.0,0.00022999,120]
[348838590,1736801020702,200.0,0.00022999,120]
[348838591,1736801104117,1071.0,0.00023,120]
[348838597,1736801308232,584.42,8.329e-05,2]
[348838604,1736801371012,250.0,8.33e-05,2]
[348838605,1736801399882,1050.0,0.00023,120]
[348838606,1736801402969,310.0,0.00023,120]
[348838607,1736801415457,1075.0,0.00023,120]
[348838608,1736801422931,915.99,8.219e-05,2]
[348838630,1736801432504,1048.19088442,0.00021,30]
[348838634,1736801432534,-162.67,8.904e-05,2]
[348838636,1736801432544,-162.67,8.906e-05,2]
[348838638,1736801432555,-162.67,8.908e-05,2]
[348838640,1736801432568,-162.67,8.911e-05,2]
[348838642,1736801432578,-162.67,8.913e-05,2]
[348838644,1736801432588,-162.67,8.915e-05,2]
[348838646,1736801432599,-162.67,8.918e-05,2]
[348838648,1736801432609,-162.67,8.92e-05,2]
[348838650,1736801432619,-162.67,8.922e-05,2]
[348838652,1736801432629,-162.67,8.925e-05,2]
[348838654,1736801432639,-162.67,8.927e-05,2]
[348838656,1736801432649,-155.30888506,8.929e-05,2]
[348838667,1736801435919,-7.36111494,8.929e-05,2]
[348838668,1736801435928,-162.67,8.932e-05,2]
[348838669,1736801435938,-162.67,8.934e-05,2]
[348838670,1736801435947,-162.67,8.937e-05,2]
[348838671,1736801435957,-162.67,8.939e-05,2]
[348838672,1736801435968,-162.67,8.941e-05,2]
[348838673,1736801435978,-162.67,8.944e-05,2]
[348838674,1736801435987,-162.67,8.946e-05,2]
[348838675,1736801435996,-162.67,8.948e-05,2]
[348838676,1736801436006,-250.0,8.964e-05,2]
[348838677,1736801436017,-161.39,8.972e-05,2]
[348838678,1736801436031,-250.0,8.973e-05,2]
[348838679,1736801436045,-1000.0,8.974e-05,2]
[348838680,1736801436055,-167.79,9.246e-05,2]
[348838681,1736801436065,-300.0,9.246e-05,2]
[348838682,1736801436076,-2300.0,9.3e-05,3]
[348838683,1736801436087,-10926.0,9.333e-05,2]
[348838684,1736801436098,-584.42,9.37e-05,2]
[348838685,1736801436108,-4600.0,9.4e-05,3]
[348838686,1736801436119,-6900.0,9.5e-05,3]
[348838687,1736801436130,-9200.0,9.6e-05,3]
[348838688,1736801436140,-150.0,9.616e-05,2]
[348838689,1736801436150,-500.0,9.644e-05,2]
[348838690,1736801436160,-11500.0,9.7e-05,3]
[348838691,1736801436171,-2300.0,9.8e-05,3]
[348838692,1736801436181,-150.0,9.869e-05,2]
[348838693,1736801436193,-1000.0,9.869e-05,2]
[348838694,1736801436203,-2414.8469,9.87e-05,2]
[348838695,1736801436217,-2930.091,9.87e-05,2]
[348838696,1736801436228,-2579.1322,9.87e-05,2]
[348838697,1736801436239,-1000.0,9.885e-05,2]
[348838698,1736801436250,-2300.0,9.9e-05,3]
[348838699,1736801436260,-500.0,9.968e-05,2]
[348838700,1736801436270,-2632.48,9.968e-05,2]
[348838701,1736801436280,-3493.85,9.968e-05,2]
[348838702,1736801436289,-1979.72,9.968e-05,2]
[348838703,1736801436299,-500.0,9.968e-05,2]
[348838704,1736801436309,-1297.07,9.968e-05,2]
[348838705,1736801436319,-3045.62,9.968e-05,2]
[348838706,1736801436328,-500.0,9.968e-05,2]
[348838707,1736801436338,-500.0,9.968e-05,2]
[348838708,1736801436348,-845.27,9.968e-05,2]
[348838709,1736801436357,-500.0,9.968e-05,2]
[348838710,1736801436367,-500.0,9.968e-05,2]
[348838712,1736801436377,-810.52,9.968e-05,2]
[348838713,1736801436386,-500.0,9.968e-05,2]
[348838715,1736801436396,-1793.53,9.968e-05,2]
[348838717,1736801436404,-500.0,9.968e-05,2]
[348838719,1736801436414,-500.0,9.968e-05,2]
[348838721,1736801436423,-500.0,9.969e-05,2]
[348838723,1736801436434,-500.0,9.969e-05,2]
[348838725,1736801436444,-500.0,9.969e-05,2]
[348838727,1736801436453,-500.0,9.969e-05,2]
[348838729,1736801436467,-500.0,9.969e-05,2]
[348838731,1736801436476,-401.37075738,9.969e-05,2]
[348838733,1736801436486,-500.0,9.969e-05,2]
[348838735,1736801436496,-500.0,9.969e-05,2]
[348838736,1736801436506,-500.0,9.969e-05,2]
[348838737,1736801436515,-500.0,9.969e-05,2]
[348838738,1736801436524,-550.12,9.969e-05,2]
[348838739,1736801436534,-500.0,9.969e-05,2]
[348838740,1736801436544,-500.0,9.969e-05,2]
[348838741,1736801436554,-500.0,9.969e-05,2]
[348838742,1736801436563,-500.0,9.969e-05,2]
[348838743,1736801436573,-500.0,9.969e-05,2]
[348838744,1736801436583,-500.0,9.969e-05,2]
[348838745,1736801436593,-500.0,9.969e-05,2]
[348838746,1736801436603,-500.0,9.969e-05,2]
[348838747,1736801436612,-500.0,9.969e-05,2]
[348838749,1736801436622,-500.0,9.969e-05,2]
[348838751,1736801436631,-500.0,9.969e-05,2]
[348838753,1736801436640,-780.45,9.969e-05,2]
[348838755,1736801436649,-500.0,9.969e-05,2]
[348838757,1736801436658,-500.0,9.969e-05,2]
[348838759,1736801436667,-500.0,9.969e-05,2]
[348838761,1736801436677,-500.0,9.969e-05,2]
[348838763,1736801436687,-501.32225581,9.969e-05,2]
[348838765,1736801436696,-500.0,9.969e-05,2]
[348838767,1736801436706,-500.0,9.969e-05,2]
[348838769,1736801436717,-500.0,9.969e-05,2]
[348838771,1736801436726,-666.66,9.969e-05,2]
[348838773,1736801436735,-500.0,9.969e-05,2]
[348838775,1736801436744,-500.0,9.969e-05,2]
[348838777,1736801436754,-500.0,9.969e-05,2]
[348838779,1736801436763,-625.0,9.969e-05,2]
[348838781,1736801436773,-500.98064584,9.969e-05,2]
[348838782,1736801436784,-500.0,9.969e-05,2]
[348838783,1736801436793,-500.0,9.969e-05,2]
[348838784,1736801436802,-500.64057856,9.969e-05,2]
[348838785,1736801436811,-500.0,9.969e-05,2]
[348838786,1736801436821,-500.0,9.969e-05,2]
[348838787,1736801436830,-500.0,9.969e-05,2]
[348838788,1736801436840,-500.60756101,9.969e-05,2]
[348838790,1736801436849,-500.0,9.969e-05,2]
[348838792,1736801436857,-501.44011796,9.969e-05,2]
[348838794,1736801436867,-207.81259824,9.969e-05,2]
[348838795,1736801436876,-500.0,9.969e-05,2]
[348838797,1736801436885,-500.0,9.969e-05,2]
[348838798,1736801436894,-500.0,9.969e-05,2]
[348838799,1736801436904,-500.0,9.969e-05,2]
[348838800,1736801436913,-208.54086522,9.969e-05,2]
[348838801,1736801436922,-500.0,9.969e-05,2]
[348838802,1736801436932,-500.0,9.969e-05,2]
[348838803,1736801436941,-500.0,9.969e-05,2]
[348838804,1736801436953,-502.59534447,9.969e-05,2]
[348838805,1736801436963,-500.0,9.969e-05,2]
[348838806,1736801436973,-500.0,9.969e-05,2]
[348838807,1736801436983,-500.0,9.969e-05,2]
[348838808,1736801436992,-500.0,9.969e-05,2]
[348838809,1736801437002,-500.0,9.969e-05,2]
[348838810,1736801437012,-500.0,9.969e-05,2]
[348838811,1736801437021,-630.45,9.969e-05,2]
[348838812,1736801437035,-500.0,9.969e-05,2]
[348838813,1736801437046,-500.0,9.969e-05,2]
[348838814,1736801437055,-685.16,9.969e-05,2]
[348838815,1736801437066,-508.22781784,9.969e-05,2]
[348838816,1736801437075,-500.0,9.969e-05,2]
[348838817,1736801437085,-500.0,9.969e-05,2]
[348838818,1736801437095,-572.17,9.969e-05,2]
[348838819,1736801437106,-500.0,9.969e-05,2]
[348838820,1736801437116,-500.0,9.969e-05,2]
[348838821,1736801437126,-500.0,9.969e-05,2]
[348838822,1736801437135,-500.0,9.969e-05,2]
[348838823,1736801437145,-500.0,9.969e-05,2]
[348838824,1736801437155,-500.0,9.969e-05,2]
[348838825,1736801437165,-500.0,9.969e-05,2]
[348838826,1736801437175,-500.0,9.969e-05,2]
[348838827,1736801437184,-500.0,9.969e-05,2]
[348838828,1736801437193,-500.0,9.969e-05,2]
[348838829,1736801437203,-500.0,9.969e-05,2]
[348838830,1736801437213,-500.0,9.969e-05,2]
[348838831,1736801437223,-500.0,9.969e-05,2]
[348838832,1736801437233,-500.0,9.969e-05,2]
[348838833,1736801437243,-500.0,9.969e-05,2]
[348838834,1736801437252,-500.0,9.969e-05,2]
[348838835,1736801437262,-500.0,9.969e-05,2]
[348838836,1736801437271,-500.0,9.969e-05,2]
[348838837,1736801437281,-500.0,9.969e-05,2]
[348838838,1736801437290,-849.96,9.969e-05,2]
[348838839,1736801437300,-500.0,9.969e-05,2]
[348838840,1736801437309,-500.0,9.969e-05,2]
[348838841,1736801437319,-500.0,9.969e-05,2]
[348838842,1736801437328,-500.0,9.969e-05,2]
[348838843,1736801437338,-792.91,9.969e-05,2]
[348838844,1736801437347,-500.0,9.969e-05,2]
[348838845,1736801437357,-500.0,9.969e-05,2]
[348838846,1736801437366,-500.0,9.969e-05,2]
[348838847,1736801437376,-790.54,9.969e-05,2]
[348838848,1736801437386,-855.07,9.969e-05,2]
[348838849,1736801437396,-500.0,9.969e-05,2]
[348838850,1736801437406,-500.0,9.969e-05,2]
[348838851,1736801437416,-500.0,9.969e-05,2]
[348838852,1736801437425,-500.0,9.969e-05,2]
[348838853,1736801437434,-500.0,9.969e-05,2]